fUSD/lending_fUSD_20260621
["ID","MTS","AMOUNT","RATE_DAILY","PERIOD"]
[425853590,1782001835000,-500.0,0.0002016,2]
[425853617,1782001835000,-500.0,0.00021018,2]
[425853589,1782001835000,-708.0,0.0002,2]
[425853592,1782001835000,-500.0,0.0002016,2]
[425853593,1782001835000,-500.0,0.0002016,2]
[425853591,1782001835000,-500.0,0.0002016,2]
[425853595,1782001835000,-10000.0,0.00020161,2]
[425853597,1782001835000,-1201.69406623,0.00020225,2]
[425853596,1782001835000,-184.12417584,0.000202,2]
[425853594,1782001835000,-151.0,0.00020161,2]
[425853599,1782001835000,-160.0,0.00020352,7]
[425853598,1782001835000,-49644.46702934,0.00020233,2]
[425853600,1782001835000,-151.0,0.00020381,2]
[425853601,1782001835000,-170.27,0.00020508,2]
[425853602,1782001835000,-654.47,0.00020652,2]
[425853603,1782001835000,-2500.0,0.000209,7]
[425853604,1782001835000,-150.99,0.00020951,2]
[425853605,1782001835000,-9999.99,0.00020951,2]
[425853607,1782001835000,-9999.99,0.00020951,2]
[425853606,1782001835000,-436.27,0.00020951,2]
[425853611,1782001835000,-159.0,0.00021,2]
[425853612,1782001835000,-159.0,0.00021,2]
[425853608,1782001835000,-6044.73,0.00020951,2]
[425853610,1782001835000,-364.0,0.00021,2]
[425853609,1782001835000,-9999.99,0.00020951,2]
[425853614,1782001835000,-473.0,0.00021,2]
[425853615,1782001835000,-161.0,0.00021,2]
[425853613,1782001835000,-458.0,0.00021,2]
[425853616,1782001835000,-500.0,0.00021018,2]
[425853619,1782001835000,-151.0,0.00021018,2]
[425853650,1782001835000,-500.0,0.00021112,2]
[425853665,1782001835000,-151.0,0.00021112,2]
[425853652,1782001835000,-500.0,0.00021112,2]
[425853684,1782001835000,-502.86123792,0.00021342,2]
[425853685,1782001835000,-151.0,0.00021387,2]
[425853686,1782001835000,-6438.24337039,0.00021407,2]
[425853687,1782001835000,-151.0,0.00021442,2]
[425853689,1782001835000,-510.0,0.000215,3]
[425853688,1782001835000,-151.0,0.00021497,2]
[425853691,1782001835000,-708.0,0.00021614,2]
[425853690,1782001835000,-280.49278348,0.00021552,2]
[425853694,1782001835000,-393.75,0.0002185,2]
[425853693,1782001835000,-354.50310776,0.0002166,2]
[425853692,1782001835000,-200.0,0.0002166,2]
[425853696,1782001835000,-150.0,0.00021918,2]
[425853695,1782001835000,-5000.0,0.00021918,2]
[425853682,1782001835000,-151.0,0.00021277,2]
[425853697,1782001835000,-150.0,0.00021918,2]
[425853700,1782001835000,-150.0,0.00021918,2]
[425853699,1782001835000,-150.0,0.00021918,2]
[425853702,1782001835000,-150.0,0.00021918,2]
[425853701,1782001835000,-150.0,0.00021918,2]
[425853705,1782001835000,-150.0,0.00021918,2]
[425853704,1782001835000,-150.0,0.00021918,2]
[425853706,1782001835000,-150.0,0.00021918,2]
[425853703,1782001835000,-150.0,0.00021918,2]
[425853708,1782001835000,-150.0,0.00021918,2]
[425853709,1782001835000,-150.0,0.00021918,2]
[425853712,1782001835000,-150.0,0.00021918,2]
[425853710,1782001835000,-150.0,0.00021918,2]
[425853649,1782001835000,-151.0,0.00021112,2]
[425853698,1782001835000,-150.0,0.00021918,2]
[425853683,1782001835000,-151.0,0.00021332,2]
[425853707,1782001835000,-150.0,0.00021918,2]
[425853679,1782001835000,-151.0,0.00021222,2]
[425853678,1782001835000,-261.22080969,0.00021199,2]
[425853653,1782001835000,-151.0,0.00021112,2]
[425853651,1782001835000,-151.0,0.00021112,2]
[425853656,1782001835000,-500.0,0.00021112,2]
[425853654,1782001835000,-151.0,0.00021112,2]
[425853655,1782001835000,-500.0,0.00021112,2]
[425853657,1782001835000,-151.0,0.00021112,2]
[425853658,1782001835000,-151.0,0.00021112,2]
[425853660,1782001835000,-500.0,0.00021112,2]
[425853661,1782001835000,-151.0,0.00021112,2]
[425853663,1782001835000,-500.0,0.00021112,2]
[425853668,1782001835000,-500.0,0.00021112,2]
[425853664,1782001835000,-500.0,0.00021112,2]
[425853667,1782001835000,-500.0,0.00021112,2]
[425853659,1782001835000,-500.0,0.00021112,2]
[425853662,1782001835000,-151.0,0.00021112,2]
[425853666,1782001835000,-151.0,0.00021112,2]
[425853677,1782001835000,-151.0,0.00021167,2]
[425853680,1782001835000,-485.86,0.00021273,2]
[425853676,1782001835000,-500.0,0.00021112,2]
[425853674,1782001835000,-151.0,0.00021112,2]
[425853669,1782001835000,-151.0,0.00021112,2]
[425853675,1782001835000,-500.0,0.00021112,2]
[425853681,1782001835000,-823.0,0.00021273,2]
[425853673,1782001835000,-151.0,0.00021112,2]
[425853671,1782001835000,-500.0,0.00021112,2]
[425853670,1782001835000,-151.0,0.00021112,2]
[425853711,1782001835000,-150.0,0.00021918,2]
[425853672,1782001835000,-500.0,0.00021112,2]
[425853718,1782001836000,-10000.0,0.00022,10]
[425853721,1782001836000,-364.0,0.00022,2]
[425853724,1782001836000,-473.0,0.00022,2]
[425853722,1782001836000,-450.0,0.00022,2]
[425853720,1782001836000,-160.0,0.00022,10]
[425853714,1782001836000,-150.0,0.00021918,2]
[425853719,1782001836000,-10000.0,0.00022,10]
[425853716,1782001836000,-189.3093602,0.00021965,2]
[425853717,1782001836000,-350.0,0.00021986,2]
[425853715,1782001836000,-150.0,0.00021918,2]
[425853713,1782001836000,-150.0,0.00021918,2]
[425853723,1782001836000,-458.0,0.00022,2]
[425853725,1782001836000,-362.96,0.00022,2]
[425853727,1782001836000,-383.0,0.00022066,2]
[425853728,1782001836000,-1229.0,0.00022066,2]
[425853729,1782001836000,-6081.0,0.00022066,2]
[425853726,1782001836000,-49644.46702934,0.00022011,2]
[425853740,1782001836000,-150.0,0.0002254,2]
[425853739,1782001836000,-643.8,0.00022466,2]
[425853742,1782001836000,-1303.48596536,0.00022787,7]
[425853735,1782001836000,-151.0,0.00022353,2]
[425853738,1782001836000,-153.4905555,0.00022407,2]
[425853741,1782001836000,-354.50310776,0.00022756,2]
[425853737,1782001836000,-153.49055551,0.00022407,2]
[425853734,1782001836000,-6811.44515734,0.00022287,7]
[425853732,1782001836000,-2095.20003482,0.00022253,2]
[425853733,1782001836000,-152.0,0.00022275,3]
[425853731,1782001836000,-354.50310776,0.00022208,2]
[425853736,1782001836000,-310.0,0.000224,2]
[425853730,1782001836000,-200.0,0.00022208,2]
[425853761,1782001840000,-2659.26742935,0.00022787,7]
[425853765,1782001840000,-473.0,0.00023,2]
[425853766,1782001840000,-510.0,0.00023,4]
[425853763,1782001840000,-828.0,0.00022926,7]
[425853769,1782001840000,-708.0,0.00023227,7]
[425853768,1782001840000,-368.16636552,0.0002315,2]
[425853770,1782001840000,-6438.24337039,0.00023286,2]
[425853767,1782001840000,-781.860695,0.00023097,7]
[425853762,1782001840000,-13786.7697,0.00022787,7]
[425853764,1782001840000,-458.0,0.00023,2]
[425853760,1782001840000,-2049.86238898,0.00022787,7]
[425853754,1782001840000,-2529.30522254,0.00022066,2]
[425853755,1782001840000,-830.68542254,0.00022066,2]
[425853757,1782001840000,-607.05961231,0.00022787,7]
[425853772,1782001840000,-152.0,0.00023426,4]
[425853758,1782001840000,-600.0,0.00022787,7]
[425853756,1782001840000,-299.55136182,0.00022787,7]
[425853753,1782001840000,-287.00935492,0.00022066,2]
[425853752,1782001840000,-3337.62475138,0.00019066,2]
[425853750,1782001840000,-453.16664352,0.00017656,2]
[425853751,1782001840000,-309.37524862,0.00019066,2]
[425853749,1782001840000,-352.5537198,0.000174,2]
[425853759,1782001840000,-2670.28783178,0.00022787,7]
[425853771,1782001840000,-354.50310776,0.00023304,2]
[425853801,1782001840000,-156.2,0.00024658,2]
[425853776,1782001840000,-599.60298507,0.00023851,2]
[425853774,1782001840000,-49644.46702934,0.00023789,2]
[425853815,1782001840000,-150.0,0.0002485,2]
[425853814,1782001840000,-708.0,0.00024841,7]
[425853802,1782001840000,-154.96,0.00024658,2]
[425853812,1782001840000,-498.0,0.00024828,2]
[425853809,1782001840000,-498.0,0.00024792,2]
[425853805,1782001840000,-498.0,0.00024743,2]
[425853804,1782001840000,-316.0,0.000247,2]
[425853798,1782001840000,-227.56,0.00024658,2]
[425853793,1782001840000,-1470.665,0.00024594,7]
[425853800,1782001840000,-1000.0,0.00024658,2]
[425853807,1782001840000,-498.0,0.00024746,2]
[425853791,1782001840000,-152.0,0.00024577,5]
[425853789,1782001840000,-510.0,0.000245,6]
[425853782,1782001840000,-17214.99,0.00024174,2]
[425853784,1782001840000,-151.0,0.00024324,2]
[425853786,1782001840000,-354.50310776,0.000244,2]
[425853779,1782001840000,-458.0,0.00024,2]
[425853780,1782001840000,-473.0,0.00024,2]
[425853778,1782001840000,-480.12209561,0.00023993,2]
[425853773,1782001840000,-150.0,0.00023667,2]
[425853775,1782001840000,-151.0,0.00023789,2]
[425853796,1782001840000,-362.96,0.00024625,7]
[425853777,1782001840000,-354.50310776,0.00023852,2]
[425853857,1782001841000,-250.0,0.00026849,8]
[425853856,1782001841000,-354.5031079,0.00026592,2]
[425853855,1782001841000,-621.78829552,0.0002659,2]
[425853854,1782001841000,-708.0,0.00026455,7]
[425853846,1782001841000,-17214.99,0.00025786,2]
[425853851,1782001841000,-151.0,0.00026296,2]
[425853853,1782001841000,-500.0,0.00026438,2]
[425853852,1782001841000,-430.125786,0.00026426,2]
[425853850,1782001841000,-662.0,0.000261,2]
[425853859,1782001841000,-3400.0,0.000269,9]
[425853849,1782001841000,-150.0,0.00026093,2]
[425853858,1782001841000,-250.0,0.00026849,8]
[425853870,1782001841000,-49644.46702934,0.00027344,2]
[425853860,1782001841000,-258.58,0.00027,2]
[425853862,1782001841000,-482.42,0.00027085,2]
[425853864,1782001841000,-482.4,0.00027085,2]
[425853863,1782001841000,-184.87,0.00027085,2]
[425853865,1782001841000,-396.19,0.00027085,2]
[425853867,1782001841000,-2294.37,0.00027233,2]
[425853872,1782001841000,-500.0,0.00027372,2]
[425853868,1782001841000,-42001.0,0.00027233,2]
[425853869,1782001841000,-362.96,0.0002725,7]
[425853866,1782001841000,-644.12,0.00027096,2]
[425853843,1782001841000,-154.60516206,0.00025727,5]
[425853871,1782001841000,-500.0,0.00027372,2]
[425853861,1782001841000,-6438.24337039,0.00027045,2]
[425853847,1782001841000,-510.0,0.00026,7]
[425853832,1782001841000,-154.96,0.00025052,7]
[425853844,1782001841000,-485.86,0.00025786,2]
[425853876,1782001841000,-151.0,0.00027397,2]
[425853816,1782001841000,-351.97151713,0.00024857,2]
[425853817,1782001841000,-498.0,0.00024865,2]
[425853818,1782001841000,-498.0,0.00024873,2]
[425853820,1782001841000,-384.40800456,0.00024923,2]
[425853821,1782001841000,-500.0,0.00024923,2]
[425853822,1782001841000,-581.8,0.00024923,2]
[425853823,1782001841000,-500.0,0.00024923,2]
[425853825,1782001841000,-354.50310776,0.00024948,2]
[425853824,1782001841000,-498.0,0.00024924,2]
[425853826,1782001841000,-498.0,0.00024956,2]
[425853828,1782001841000,-367.0,0.00025,2]
[425853845,1782001841000,-823.0,0.00025786,2]
[425853829,1782001841000,-469.44506022,0.00025,2]
[425853831,1782001841000,-156.2,0.00025052,7]
[425853833,1782001841000,-383.0,0.00025066,2]
[425853834,1782001841000,-6081.0,0.00025066,2]
[425853837,1782001841000,-6438.24337039,0.00025166,2]
[425853835,1782001841000,-3647.0,0.00025066,2]
[425853836,1782001841000,-383.53,0.000251,14]
[425853838,1782001841000,-156.2,0.00025447,30]
[425853841,1782001841000,-49644.46702934,0.00025567,2]
[425853839,1782001841000,-154.96,0.00025447,30]
[425853840,1782001841000,-354.50310776,0.00025496,2]
[425853842,1782001841000,-152.0,0.00025727,6]
[425853848,1782001841000,-354.50310776,0.00026044,2]
[425853827,1782001841000,-498.0,0.0002497,2]
[425853873,1782001841000,-207628.3328867,0.00027373,2]
[425853830,1782001841000,-490.0,0.00025,2]
[425853875,1782001841000,-218.04388813,0.00027397,2]
[425853906,1782001841000,-159.79,0.0002755,30]
[425853910,1782001841000,-502.86123791,0.00027599,2]
[425853912,1782001841000,-154.96,0.00027632,7]
[425853913,1782001841000,-190.44,0.00027711,7]
[425853909,1782001841000,-161.72,0.0002755,30]
[425853911,1782001841000,-156.2,0.00027632,7]
[425853914,1782001841000,-189.5,0.00027711,7]
[425853915,1782001841000,-156.2,0.00027715,30]
[425853918,1782001841000,-156.2,0.00027798,2]
[425853916,1782001841000,-154.96,0.00027715,30]
[425853917,1782001841000,-161.72,0.00027757,7]
[425853933,1782001841000,-396.28,0.00027907,2]
[425853908,1782001841000,-189.5,0.0002755,30]
[425853919,1782001841000,-154.96,0.00027798,2]
[425853921,1782001841000,-190.44,0.00027872,2]
[425853922,1782001841000,-189.5,0.00027872,2]
[425853923,1782001841000,-156.2,0.00027881,7]
[425853925,1782001841000,-357.0,0.00027903,7]
[425853924,1782001841000,-154.96,0.00027881,7]
[425853927,1782001841000,-396.28,0.00027907,2]
[425853926,1782001841000,-482.42,0.00027907,2]
[425853930,1782001841000,-185.2,0.00027907,2]
[425853929,1782001841000,-396.26,0.00027907,2]
[425853931,1782001841000,-396.26,0.00027907,2]
[425853928,1782001841000,-644.31,0.00027907,2]
[425853932,1782001841000,-643.67,0.00027907,2]
[425853920,1782001841000,-10000.0,0.00027812,2]
[425853905,1782001841000,-190.44,0.0002755,30]
[425853874,1782001841000,-4008.8907924,0.00027373,2]
[425853907,1782001841000,-154.96,0.0002755,2]
[425853878,1782001841000,-285.87,0.00027397,2]
[425853877,1782001841000,-163.380109,0.00027397,2]
[425853880,1782001841000,-151.0,0.00027397,2]
[425853879,1782001841000,-151.0,0.00027397,2]
[425853881,1782001841000,-151.0,0.00027397,2]
[425853882,1782001841000,-151.0,0.00027397,2]
[425853883,1782001841000,-151.0,0.00027397,2]
[425853902,1782001841000,-510.0,0.000275,9]
[425853885,1782001841000,-151.0,0.00027397,2]
[425853887,1782001841000,-151.0,0.00027397,2]
[425853886,1782001841000,-151.0,0.00027397,2]
[425853888,1782001841000,-151.0,0.00027397,2]
[425853889,1782001841000,-151.0,0.00027397,2]
[425853884,1782001841000,-151.0,0.00027397,2]
[425853891,1782001841000,-151.0,0.00027397,2]
[425853890,1782001841000,-151.0,0.00027397,2]
[425853903,1782001841000,-955.15,0.00027548,2]
[425853901,1782001841000,-31553.97,0.000275,7]
[425853900,1782001841000,-18367.5,0.000275,7]
[425853899,1782001841000,-7534.11,0.000275,7]
[425853898,1782001841000,-500.0,0.00027499,14]
[425853904,1782001841000,-156.2,0.0002755,2]
[425853895,1782001841000,-150.0,0.00027398,2]
[425853896,1782001841000,-216.28381402,0.000274,10]
[425853894,1782001841000,-6636.46,0.00027397,10]
[425853893,1782001841000,-7963.75,0.00027397,10]
[425853892,1782001841000,-227.56,0.00027397,2]
[425853897,1782001841000,-500.0,0.00027499,7]
[425853974,1782001842000,-190.44,0.00028355,2]
[425853972,1782001842000,-955.16,0.00028233,2]
[425853973,1782001842000,-151.0,0.00028267,2]
[425853971,1782001842000,-173.40742453,0.000282,2]
[425853969,1782001842000,-173.40742455,0.000282,2]
[425853968,1782001842000,-189.5,0.00028194,7]
[425853965,1782001842000,-155.0,0.0002813,7]
[425853964,1782001842000,-156.22,0.0002813,7]
[425853966,1782001842000,-159.79,0.00028171,30]
[425853967,1782001842000,-190.44,0.00028194,7]
[425853970,1782001842000,-173.40742453,0.000282,2]
[425853976,1782001842000,-159.78,0.00028378,7]
[425853989,1782001842000,-573.64,0.00028729,2]
[425853977,1782001842000,-159.79,0.00028378,7]
[425853979,1782001842000,-161.71,0.00028378,7]
[425853980,1782001842000,-190.44,0.00028516,30]
[425853983,1782001842000,-161.72,0.00028585,2]
[425853981,1782001842000,-189.5,0.00028516,30]
[425853982,1782001842000,-159.79,0.00028585,2]
[425853985,1782001842000,-643.9,0.00028729,2]
[425853984,1782001842000,-311.86,0.00028725,2]
[425853986,1782001842000,-573.61,0.00028729,2]
[425853988,1782001842000,-185.2,0.00028729,2]
[425853987,1782001842000,-573.61,0.00028729,2]
[425853990,1782001842000,-185.19,0.00028729,2]
[425853963,1782001842000,-716.28925902,0.000281,2]
[425853978,1782001842000,-161.72,0.00028378,7]
[425853962,1782001842000,-716.28925902,0.000281,2]
[425853948,1782001842000,-154.96,0.00027964,30]
[425853959,1782001842000,-3647.0,0.00028066,2]
[425853993,1782001842000,-573.61,0.00028729,2]
[425853934,1782001842000,-644.31,0.00027907,2]
[425853937,1782001842000,-482.4,0.00027918,2]
[425853935,1782001842000,-396.26,0.00027907,2]
[425853936,1782001842000,-185.19,0.00027907,2]
[425853939,1782001842000,-396.28,0.00027918,2]
[425853940,1782001842000,-644.29,0.00027918,2]
[425853938,1782001842000,-185.2,0.00027918,2]
[425853941,1782001842000,-482.42,0.00027918,2]
[425853942,1782001842000,-573.61,0.00027918,2]
[425853944,1782001842000,-185.2,0.00027918,2]
[425853945,1782001842000,-644.31,0.00027918,2]
[425853961,1782001842000,-716.28925904,0.000281,2]
[425853943,1782001842000,-396.28,0.00027918,2]
[425853946,1782001842000,-189.30936019,0.00027928,2]
[425853949,1782001842000,-161.71,0.00027964,2]
[425853950,1782001842000,-161.72,0.00027964,2]
[425853952,1782001842000,-190.44,0.00028033,30]
[425853957,1782001842000,-383.0,0.00028066,2]
[425853951,1782001842000,-500.0,0.00027988,14]
[425853958,1782001842000,-6081.0,0.00028066,2]
[425853953,1782001842000,-189.5,0.00028033,30]
[425853954,1782001842000,-156.2,0.00028047,2]
[425853956,1782001842000,-2095.20003482,0.00028054,2]
[425853955,1782001842000,-154.96,0.00028047,2]
[425853960,1782001842000,-708.0,0.00028069,7]
[425853947,1782001842000,-156.2,0.00027964,30]
[425853992,1782001842000,-644.29,0.00028729,2]
[425853975,1782001842000,-189.5,0.00028355,2]
[425853995,1782001842000,-185.19,0.00028729,2]
[425854026,1782001842000,-152.0,0.00028876,30]
[425854024,1782001842000,-473.0,0.00028876,30]
[425854027,1782001842000,-154.0,0.00028876,30]
[425854029,1782001842000,-152.0,0.00028881,30]
[425854031,1782001842000,-33853.31211685,0.00028908,2]
[425854032,1782001842000,-300.0,0.00028908,7]
[425854033,1782001842000,-6438.24337039,0.00028925,2]
[425854030,1782001842000,-154.0,0.00028883,30]
[425854034,1782001842000,-1500.0,0.0002896,10]
[425854036,1782001842000,-323.21,0.00029,2]
[425854035,1782001842000,-1111.11,0.00028975,30]
[425854037,1782001842000,-10000.0,0.00029,2]
[425854038,1782001842000,-200.0,0.00029,2]
[425854039,1782001842000,-200.0,0.00029,2]
[425854040,1782001842000,-200.0,0.00029,2]
[425854042,1782001842000,-200.0,0.00029,2]
[425854041,1782001842000,-200.0,0.00029,2]
[425854043,1782001842000,-200.0,0.00029,2]
[425854044,1782001842000,-200.0,0.00029,2]
[425854045,1782001842000,-200.0,0.00029,2]
[425854046,1782001842000,-200.0,0.00029,2]
[425854047,1782001842000,-200.0,0.00029,2]
[425854048,1782001842000,-200.0,0.00029,2]
[425854052,1782001842000,-200.0,0.00029,2]
[425854051,1782001842000,-200.0,0.00029,2]
[425854049,1782001842000,-200.0,0.00029,2]
[425853991,1782001842000,-396.26,0.00028729,2]
[425854025,1782001842000,-158.0,0.00028876,30]
[425854021,1782001842000,-159.0,0.00028876,30]
[425854028,1782001842000,-151.0,0.00028876,30]
[425854022,1782001842000,-159.0,0.00028876,30]
[425853994,1782001842000,-185.06,0.00028729,2]
[425853997,1782001842000,-185.19,0.00028729,2]
[425853996,1782001842000,-573.61,0.00028729,2]
[425853998,1782001842000,-576.85,0.00028729,2]
[425853999,1782001842000,-411.9,0.00028729,2]
[425854000,1782001842000,-185.19,0.00028729,2]
[425854002,1782001842000,-647.24,0.00028735,2]
[425854001,1782001842000,-644.29,0.00028729,2]
[425854004,1782001842000,-185.15,0.00028735,2]
[425854003,1782001842000,-482.34,0.00028735,2]
[425854023,1782001842000,-458.0,0.00028876,30]
[425854006,1782001842000,-573.64,0.00028736,2]
[425854007,1782001842000,-644.29,0.0002874,2]
[425854009,1782001842000,-185.19,0.0002874,2]
[425854005,1782001842000,-396.28,0.00028736,2]
[425854011,1782001842000,-185.19,0.0002874,2]
[425854010,1782001842000,-396.28,0.0002874,2]
[425854050,1782001842000,-200.0,0.00029,2]
[425854013,1782001842000,-185.26,0.0002874,2]
[425854012,1782001842000,-644.29,0.0002874,2]
[425854015,1782001842000,-573.61,0.0002874,2]
[425854016,1782001842000,-218.04388813,0.00028766,2]
[425854017,1782001842000,-150.0,0.00028767,2]
[425854014,1782001842000,-482.37,0.0002874,2]
[425854018,1782001842000,-159.79,0.00028792,30]
[425854008,1782001842000,-396.26,0.0002874,2]
[425854020,1782001842000,-1111.11,0.000288,30]
[425854019,1782001842000,-161.72,0.00028792,30]
[425854057,1782001843000,-200.0,0.00029,2]
[425854058,1782001843000,-200.0,0.00029,2]
[425854060,1782001843000,-200.0,0.00029,2]
[425854059,1782001843000,-200.0,0.00029,2]
[425854056,1782001843000,-200.0,0.00029,2]
[425854053,1782001843000,-200.0,0.00029,2]
[425854054,1782001843000,-200.0,0.00029,2]
[425854061,1782001843000,-200.0,0.00029,2]
[425854062,1782001843000,-227.45,0.00029,2]
[425854055,1782001843000,-200.0,0.00029,2]
[425854063,1782001843000,-595.30862539,0.00029,2]
[425854072,1782001843000,-919.39818052,0.00029007,2]
[425854073,1782001843000,-755.80481717,0.00029007,2]
[425854070,1782001843000,-161.72,0.00028171,30]
[425854071,1782001843000,-56144.73597116,0.00029007,2]
[425854064,1782001843000,-4717.82211026,0.00029,2]
[425854069,1782001843000,-739705.86489503,0.00029007,2]
[425854067,1782001843000,-989658.90209369,0.00029007,2]
[425854066,1782001843000,-21830.69335305,0.00029007,2]
[425854065,1782001843000,-510.0,0.00029,10]
[425854068,1782001843000,-2250.0094896,0.00029007,2]
[425854075,1782001844000,-159.78,0.00027757,7]
[425854074,1782001844000,-159.78,0.0002755,30]
[425854077,1782001844000,-414.0,0.00028033,10]
[425854078,1782001844000,-159.78,0.00028171,30]
[425854076,1782001844000,-159.78,0.00027964,2]
[425854081,1782001844000,-4508.74581281,0.00029007,2]
[425854082,1782001844000,-19750.60750134,0.00029007,2]
[425854079,1782001844000,-2300644.29611723,0.00029007,2]
[425854084,1782001844000,-42073.6217,0.00029007,2]
[425854083,1782001844000,-20712.87450479,0.00029007,2]
[425854080,1782001844000,-2146.68012672,0.00029007,2]
[425854086,1782001845000,-152.0,0.000174,2]
[425854088,1782001845000,-2575.00435281,0.00028997,10]
[425854087,1782001845000,-105379.84955579,0.00029007,2]
[425854093,1782001940000,279.85188227,0.00011966,2]
[425854094,1782001980000,174.39448975,0.0001,2]
[425854095,1782002094000,-157.11807225,0.00013122,2]
[425854096,1782002112000,-500.0,0.00013122,2]
[425854097,1782002147000,-193.36055452,0.00013122,2]
[425854098,1782002164000,-500.0,0.00013122,2]
[425854099,1782002201000,-549.56840757,0.00013122,2]
[425854100,1782002219000,-500.0,0.00013123,2]
[425854101,1782002254000,-485.35238817,0.00013121,2]
[425854102,1782002308000,-500.0,0.00013121,2]
[425854103,1782002362000,-339.74667172,0.0001312,2]
[425854104,1782002415000,-500.0,0.0001312,2]
[425854105,1782002461000,-183.9421851,0.0001302,2]
[425854106,1782002507000,-237.8226702,0.00013119,2]
[425854107,1782002552000,-160.0,0.00013119,2]
[425854110,1782002721000,-909.0238376,0.00013023,2]
[425854111,1782002774000,-250.0,0.00013073,2]
[425854112,1782002828000,-166.47586914,0.00013121,2]
[425854113,1782002882000,-500.0,0.00013121,2]
[425854114,1782002935000,-500.0,0.0001312,2]
[425854116,1782002989000,-1000.0,0.00013023,2]
[425854117,1782003007000,-1186.09636713,0.00013023,2]
[425854118,1782003024000,-1186.09636713,0.00013023,2]
[425854220,1782003042000,-850.0,0.00013023,2]
[425854240,1782003043000,-163.76,0.00013989,2]
[425854242,1782003043000,-115.31540325,0.00013989,2]
[425854241,1782003043000,-384.68459675,0.00013989,2]
[425854245,1782003043000,-216.28381402,0.00013996,2]
[425854243,1782003043000,-500.0,0.00013989,2]
[425854253,1782003043000,-300.0,0.00014325,2]
[425854244,1782003043000,-160.0,0.00013995,2]
[425854248,1782003043000,-61.20544267,0.00014,2]
[425854246,1782003043000,-160.0,0.00013996,2]
[425854249,1782003043000,-908.51520833,0.00014,2]
[425854251,1782003043000,-207.08937098,0.00014325,2]
[425854250,1782003043000,-288.0,0.00014078,2]
[425854252,1782003043000,-193.0,0.00014325,2]
[425854254,1782003043000,-264.67395598,0.00014325,2]
[425854255,1782003043000,-250.0,0.00014325,2]
[425854247,1782003043000,-250.0,0.00014,2]
[425854237,1782003043000,-500.0,0.00013985,2]
[425854239,1782003043000,-154.17680989,0.00013985,2]
[425854235,1782003043000,-500.0,0.00013985,2]
[425854222,1782003043000,-2688.45,0.00013023,2]
[425854221,1782003043000,-5169.46849591,0.00013023,2]
[425854224,1782003043000,-15060.13663362,0.00013023,2]
[425854223,1782003043000,-1774.53483621,0.00013023,2]
[425854225,1782003043000,-500.0,0.0001312,2]
[425854227,1782003043000,-500.0,0.0001312,2]
[425854226,1782003043000,-500.0,0.0001312,2]
[425854228,1782003043000,-500.0,0.0001312,2]
[425854230,1782003043000,-291.32334823,0.00013776,7]
[425854231,1782003043000,-500.0,0.00013985,2]
[425854232,1782003043000,-500.0,0.00013985,2]
[425854229,1782003043000,-254.95684076,0.0001312,2]